fUST/lending_fUST_20251004
["ID","MTS","AMOUNT","RATE_DAILY","PERIOD"]
[389104474,1759578824674,-1807.95,0.00019213,2]
[389104475,1759578824701,-338.67198552,0.00019487,2]
[389104476,1759578824763,-3706.76602896,0.00019487,2]
[389104477,1759578826799,-1023.32,0.00019487,2]
[389104478,1759578826839,-591.31,0.00019487,2]
[389104479,1759578826871,-1874.39,0.00019487,2]
[389104480,1759578826899,-500.0,0.00019487,2]
[389104481,1759578826929,-214.02,0.00019487,2]
[389104482,1759578827046,-1593.93,0.00019487,2]
[389104483,1759578830668,-2909.69,0.00019213,2]
[389104484,1759578830695,-500.0,0.00019213,2]
[389104485,1759578830721,-340.3737615,0.00019213,2]
[389104486,1759578830748,-551.71955659,0.00019213,2]
[389104487,1759578830775,-500.0,0.00019213,2]
[389104488,1759578830865,-396.44336382,0.00019487,2]
[389104489,1759578832698,-635.85,0.00019213,2]
[389104490,1759578832726,-2513.24663618,0.00019487,2]
[389104491,1759578832752,-635.85,0.00019487,2]
[389104492,1759578832780,-500.0,0.00019761,2]
[389104493,1759578832808,-639.03,0.00019761,2]
[389104494,1759578832927,-152.05672764,0.00019761,2]
[389104495,1759578834703,-500.0,0.00019213,2]
[389104496,1759578834729,-500.0,0.00019213,2]
[389104497,1759578834757,-500.0,0.00019213,2]
[389104498,1759578834784,-500.0,0.00019487,2]
[389104499,1759578834811,-347.94327236,0.00019761,2]
[389104500,1759578834840,-690.24,0.00019761,2]
[389104501,1759578834866,-704.65,0.00019761,2]
[389104502,1759578834895,-500.0,0.00019761,2]
[389104503,1759578835025,-1514.34345528,0.00019761,2]
[389104504,1759578838839,-1333.57,0.00019213,2]
[389104505,1759578838867,-500.0,0.00019213,2]
[389104506,1759578839079,-500.0,0.00019213,2]
[389104507,1759578839109,-500.0,0.00019213,2]
[389104508,1759578839138,-500.0,0.00019213,2]
[389104509,1759578839166,-1333.57,0.00019487,2]
[389104510,1759578839194,-165.73,0.00019487,2]
[389104511,1759578839336,-334.27,0.00019213,2]
[389104512,1759578840747,-165.73,0.00019213,2]
[389104513,1759578840776,-500.0,0.00019213,2]
[389104514,1759578840803,-334.27,0.00019487,2]
[389104515,1759578840830,-500.0,0.00019487,2]
[389104516,1759578840857,-453.45546985,0.00019487,2]
[389104517,1759578840884,-2875.98251558,0.00019761,2]
[389104518,1759578840976,-341.13402914,0.00019761,2]
[389104519,1759578844771,-463.70534363,0.00019021,2]
[389104520,1759578844800,-300.0,0.00019212,2]
[389104521,1759578844829,-1470.25931274,0.00019213,2]
[389104522,1759578844897,-5532.08068726,0.00019213,2]
[389104523,1759578846816,-500.0,0.00019213,2]
[389104524,1759578846851,-2768.61,0.00019213,2]
[389104525,1759578846881,-114.16,0.00019213,2]
[389104526,1759578846956,-3234.47,0.00019213,2]
[389104527,1759578850901,-5000.0,0.00019021,2]
[389104528,1759578850939,-0.01,0.00019213,2]
[389104529,1759578854869,-499.99,0.00019213,2]
[389104530,1759578854901,-500.0,0.00019213,2]
[389104531,1759578854932,-555.03,0.00019213,2]
[389104532,1759578854962,-500.0,0.00019213,2]
[389104533,1759578854995,-500.0,0.00019213,2]
[389104534,1759578855026,-540.0,0.00019213,3]
[389104535,1759578855056,-500.0,0.00019213,2]
[389104536,1759578855086,-500.0,0.00019213,2]
[389104537,1759578855116,-500.0,0.00019213,2]
[389104538,1759578855146,-309.97,0.00019213,2]
[389104539,1759578855346,-190.03,0.00019213,2]
[389104540,1759578858907,-500.0,0.00019213,2]
[389104541,1759578858935,-891.25,0.00019213,2]
[389104542,1759578858962,-892.31,0.00019213,2]
[389104543,1759578858990,-500.0,0.00019213,2]
[389104544,1759578859018,-500.0,0.00019213,2]
[389104545,1759578859046,-500.0,0.00019213,2]
[389104546,1759578859160,-2432.89,0.00019487,2]
[389104547,1759578861031,-4569.45,0.00019487,2]
[389104548,1759578861058,-361.11,0.00019487,2]
[389104549,1759578861096,-138.89,0.00019487,2]
[389104550,1759578862940,-2768.61,0.00019487,2]
[389104551,1759578862968,-1114.16,0.00019487,2]
[389104552,1759578863007,-2234.47,0.00019487,2]
[389104553,1759578865020,-500.0,0.00019213,2]
[389104554,1759578865048,-500.0,0.00019487,2]
[389104555,1759578865075,-555.03,0.00019487,2]
[389104556,1759578865101,-500.0,0.00019487,2]
[389104557,1759578865127,-500.0,0.00019487,2]
[389104558,1759578865153,-891.25,0.00019487,2]
[389104559,1759578865180,-892.31,0.00019487,2]
[389104560,1759578865206,-500.0,0.00019487,2]
[389104561,1759578865332,-322.83,0.00019487,2]
[389104562,1759578867014,-500.0,0.00019213,2]
[389104563,1759578867041,-13.99016554,0.00019487,2]
[389104564,1759578867068,-500.0,0.00019487,2]
[389104565,1759578867096,-500.0,0.00019487,2]
[389104566,1759578867125,-1023.32,0.00019761,2]
[389104567,1759578867151,-591.31,0.00019761,2]
[389104568,1759578867179,-1868.37966892,0.00019761,2]
[389104569,1759578867283,-6.01033108,0.00019487,2]
[389104570,1759578885440,-500.0,0.00019178,2]
[389104571,1759578885467,-500.0,0.00019213,2]
[389104572,1759578885493,-500.0,0.00019213,2]
[389104573,1759578885519,-500.0,0.00019213,2]
[389104574,1759578885547,-500.0,0.00019213,2]
[389104575,1759578885573,-500.0,0.00019213,2]
[389104576,1759578885599,-500.0,0.00019213,2]
[389104577,1759578885625,-500.0,0.00019213,2]
[389104578,1759578885651,-500.0,0.00019213,2]
[389104579,1759578885677,-500.0,0.00019213,2]
[389104580,1759578885855,-605.9,0.00019213,2]
[389104581,1759578885881,-761.97,0.00019213,2]
[389104582,1759578885908,-500.0,0.00019213,2]
[389104583,1759578885936,-500.0,0.00019213,2]
[389104584,1759578885963,-500.0,0.00019213,2]
[389104585,1759578885990,-2048.92,0.00019213,2]
[389104586,1759578886178,-166.43,0.00019213,2]
[389104587,1759578886187,-0.01,0.00019213,2]
[389104588,1759578887175,-499.99,0.00019213,2]
[389104589,1759578887202,-500.0,0.00019213,2]
[389104590,1759578887228,-500.0,0.00019213,2]
[389104591,1759578887256,-1753.03,0.00019213,2]
[389104592,1759578887282,-500.0,0.00019213,2]
[389104593,1759578887311,-500.0,0.00019213,2]
[389104594,1759578887338,-500.0,0.00019213,2]
[389104595,1759578887455,-493.97,0.00019213,2]
[389104596,1759578893199,-500.0,0.00019178,2]
[389104597,1759578893227,-3589.86,0.00019213,2]
[389104598,1759578893254,-565.87,0.00019213,2]
[389104599,1759578893280,-188.55,0.00019213,2]
[389104600,1759578893351,-311.45,0.00019213,2]
[389104601,1759578895236,-500.0,0.00019213,2]
[389104602,1759578895266,-581.13,0.00019213,2]
[389104603,1759578895294,-1095.41,0.00019213,2]
[389104604,1759578895322,-500.0,0.00019213,2]
[389104605,1759578895350,-858.34,0.00019213,2]
[389104606,1759578895493,-527.1,0.00019213,2]
[389104607,1759578895524,-500.0,0.00019213,2]
[389104608,1759578895664,-876.05,0.00019292,2]
[389104609,1759578897464,-500.0,0.00019213,2]
[389104610,1759578897493,-4123.95,0.00019292,2]
[389104611,1759578897521,-252.11,0.00019452,2]
[389104612,1759578897573,-247.89,0.00019452,2]
[389104613,1759578902219,-1406.01,0.00019213,2]
[389104614,1759578902245,-500.0,0.00019213,2]
[389104615,1759578902271,-493.98966892,0.00019487,2]
[389104616,1759578902297,-500.0,0.00019487,2]
[389104617,1759578902325,-500.0,0.00019487,2]
[389104618,1759578902351,-500.0,0.00019487,2]
[389104619,1759578902379,-605.9,0.00019487,2]
[389104620,1759578902405,-226.24066216,0.00019487,2]
[389104621,1759578902529,-300.0,0.00019486,2]
[389104622,1759578902538,-235.72933784,0.00019487,2]
[389104623,1759578907636,-500.0,0.00019178,2]
[389104624,1759578907674,-747.14,0.00019213,2]
[389104625,1759578907722,-730.05,0.00019213,2]
[389104626,1759578907777,-500.0,0.00019213,2]
[389104627,1759578907819,-500.0,0.00019213,2]
[389104628,1759578907859,-586.98,0.00019213,2]
[389104629,1759578907891,-500.0,0.00019213,2]
[389104630,1759578907919,-500.0,0.00019452,2]
[389104631,1759578908168,-871.67,0.00019486,2]
[389104632,1759578909343,-328.33,0.00019486,2]
[389104633,1759578909373,-300.0,0.00019487,2]
[389104634,1759578909404,-500.0,0.00019487,2]
[389104635,1759578909437,-500.0,0.00019487,2]
[389104636,1759578909467,-2215.35,0.00019487,2]
[389104637,1759578909497,-500.0,0.00019487,2]
[389104638,1759578909529,-500.0,0.00019487,2]
[389104639,1759578909661,-312.65,0.00019213,2]
[389104640,1759578927641,-5000.0,0.00019021,2]
[389104641,1759578927680,-0.01,0.00019178,2]
[389104642,1759578927872,-499.99,0.00019178,2]
[389104643,1759578927901,-687.35,0.00019213,2]
[389104644,1759578927929,-1314.39,0.00019213,2]
[389104645,1759578927958,-500.0,0.00019213,2]
[389104646,1759578927985,-231.67763548,0.00019213,2]
[389104647,1759578928013,-500.0,0.00019213,2]
[389104648,1759578928042,-1107.61,0.00019213,2]
[389104649,1759578928148,-500.0,0.00019213,2]
[389104650,1759578928176,-500.0,0.00019213,2]
[389104651,1759578928204,-504.74,0.00019213,2]
[389104652,1759578928231,-500.0,0.00019213,2]
[389104653,1759578928258,-500.0,0.00019213,2]
[389104654,1759578928287,-500.0,0.00019213,2]
[389104655,1759578928316,-500.0,0.00019213,2]
[389104656,1759578928345,-500.0,0.00019213,2]
[389104657,1759578928372,-500.0,0.00019213,2]
[389104658,1759578928400,-420.0,0.00019213,2]
[389104659,1759578928520,-150.53,0.00019213,2]
[389104660,1759578928548,-500.0,0.00019213,2]
[389104661,1759578928578,-1244.13,0.00019213,2]
[389104662,1759578928605,-513.78,0.00019213,2]
[389104663,1759578928635,-709.02,0.00019213,2]
[389104664,1759578928664,-500.0,0.00019213,2]
[389104665,1759578928692,-500.0,0.00019213,2]
[389104666,1759578928719,-500.0,0.00019452,2]
[389104667,1759578929314,-500.0,0.00019213,2]
[389104668,1759578929338,-202.34,0.00019213,2]
[389104669,1759578929347,-562.75,0.00019487,2]
[389104670,1759578933245,-551.68451343,0.00019178,2]
[389104671,1759578933275,-500.0,0.00019213,2]
[389104672,1759578933303,-500.0,0.00019213,2]
[389104673,1759578933333,-611.55,0.00019213,2]
[389104674,1759578933360,-500.0,0.00019213,2]
[389104675,1759578933387,-500.0,0.00019213,2]
[389104676,1759578933414,-500.0,0.00019213,2]
[389104677,1759578933441,-500.0,0.00019213,2]
[389104678,1759578933469,-483.26097314,0.00019487,2]
[389104679,1759578933637,-707.01902686,0.00019487,2]
[389104680,1759578933666,-500.0,0.00019487,2]
[389104681,1759578933695,-3502.14194628,0.00019487,2]
[389104682,1759578933759,-581.68805372,0.00019487,2]
[389104683,1759578933788,-565.87,0.00019487,2]
[389104684,1759578933820,-500.0,0.00019487,2]
[389104685,1759578933850,-581.13,0.00019487,2]
[389104686,1759578933879,-1095.41,0.00019487,2]
[389104687,1759578933908,-500.0,0.00019487,2]
[389104688,1759578933936,-858.34,0.00019487,2]
[389104689,1759578933965,-108.03389256,0.00019487,2]
[389104690,1759578934155,-419.06610744,0.00019487,2]
[389104691,1759578934183,-1406.01,0.00019487,2]
[389104692,1759578934212,-747.14,0.00019487,2]
[389104693,1759578934240,-500.0,0.00019487,2]
[389104694,1759578934270,-730.05,0.00019487,2]
[389104695,1759578934297,-500.0,0.00019487,2]
[389104696,1759578934555,-586.98,0.00019487,2]
[389104697,1759578934721,-1314.39,0.00019487,2]
[389104698,1759578934749,-500.0,0.00019487,2]
[389104699,1759578934779,-1107.61,0.00019487,2]
[389104700,1759578934808,-500.0,0.00019487,2]
[389104701,1759578934836,-500.0,0.00019487,2]
[389104702,1759578934866,-504.74,0.00019487,2]
[389104703,1759578934895,-500.0,0.00019487,2]
[389104704,1759578935223,-500.0,0.00019487,2]
[389104705,1759578935253,-500.0,0.00019487,2]
[389104706,1759578935283,-570.53,0.00019487,2]
[389104707,1759578935313,-1244.13,0.00019487,2]
[389104708,1759578935340,-513.78,0.00019487,2]
[389104709,1759578935369,-709.02,0.00019487,2]
[389104710,1759578935399,-500.0,0.00019487,2]
[389104711,1759578935429,-222.75,0.00019487,2]
[389104712,1759578935770,-207.05,0.00019487,2]
[389104713,1759578935791,-272.54,0.00019487,2]
[389104714,1759578935801,-241.24,0.00019487,2]
[389104715,1759578935820,-258.76,0.00019487,2]
[389104716,1759578935830,-450.26,0.00019487,2]
[389104717,1759578935859,-161.29,0.00019487,2]
[389104718,1759578935869,-338.71,0.00019487,2]
[389104719,1759578935888,-161.29,0.00019487,2]
[389104720,1759578935898,-500.0,0.00019487,2]
[389104721,1759578935908,-41.05,0.000195,2]
[389104722,1759578935947,-258.95,0.000195,2]
[389104723,1759578935975,-300.0,0.000195,2]
[389104724,1759578936005,-300.0,0.000195,2]
[389104725,1759578936034,-492.51261253,0.00019726,2]
[389104726,1759578936064,-500.0,0.00019726,2]
[389104727,1759578936095,-6.01033108,0.00019761,2]
[389104728,1759578936125,-500.0,0.00019761,2]
[389104729,1759578936155,-1807.95,0.00019761,2]
[389104730,1759578936215,-2909.69,0.00019761,2]
[389104731,1759578936245,-635.85,0.00019761,2]
[389104732,1759578936275,-500.0,0.00019761,2]
[389104733,1759578936311,-575.36,0.00019761,2]
[389104734,1759578936392,-758.21,0.00019761,2]
[389104735,1759578936424,-500.0,0.00019761,2]
[389104736,1759578936459,-481.25,0.00019761,2]
[389104737,1759578936678,-3478.92,0.00019761,2]
[389104738,1759578936989,-3042.17,0.00019761,2]
[389104739,1759578936999,-2427.37411278,0.00019761,2]
[389104740,1759578937045,-800.0,0.0001963,2]
[389104741,1759578937055,-600.0,0.00019721,2]
[389104742,1759578937065,-341.23588722,0.00019761,2]
[389104743,1759578937074,-3348.63,0.00019761,2]
[389104744,1759578937085,-500.0,0.00019761,2]
[389104745,1759578937095,-555.03,0.00019761,2]
[389104746,1759578937104,-376.19411278,0.00019761,2]
[389104747,1759578939621,-500.0,0.00019178,2]
[389104748,1759578939651,-500.0,0.00019213,2]
[389104749,1759578939680,-866.82,0.00019213,2]
[389104750,1759578939708,-500.0,0.00019487,2]
[389104751,1759578939737,-866.82,0.00019487,2]
[389104752,1759578939766,-300.0,0.000195,2]
[389104753,1759578939795,-123.80588722,0.00019761,2]
[389104754,1759578939824,-891.25,0.00019761,2]
[389104755,1759578939854,-10.30822556,0.00019761,2]
[389104756,1759578939941,-882.00177444,0.00019761,2]
[389104757,1759578939968,-500.0,0.00019761,2]
[389104758,1759578939997,-500.0,0.00019761,2]
[389104759,1759578940026,-500.0,0.00019761,2]
[389104760,1759578940055,-500.0,0.00019761,2]
[389104761,1759578940084,-500.0,0.00019761,2]
[389104762,1759578940114,-295.42193492,0.00019761,2]
[389104763,1759578940141,-500.0,0.00019761,2]
[389104764,1759578940169,-761.97,0.00019761,2]
[389104765,1759578940299,-442.88149303,0.00019452,2]
[389104766,1759578940327,-605.9,0.00019761,2]
[389104767,1759578940355,-500.0,0.00019761,2]
[389104768,1759578940382,-500.0,0.00019761,2]
[389104769,1759578940410,-2215.35,0.00019761,2]
[389104770,1759578940436,-467.18751227,0.00019761,2]
[389104771,1759578940463,-37.3719894,0.00019761,2]
[389104772,1759578940638,-624.31,0.00019213,2]
[389104773,1759578940666,-462.6280106,0.00019761,2]
[389104774,1759578940692,-826.29413717,0.00019761,2]
[389104775,1759578940721,-1753.03,0.00019761,2]
[389104776,1759578940747,-500.0,0.00019761,2]
[389104777,1759578940861,-4083.83,0.00019761,2]
[389104778,1759578940889,-565.87,0.00019761,2]
[389104779,1759578940917,-200.61,0.00019761,2]
[389104780,1759578941085,-624.31,0.00019487,2]
[389104781,1759578941113,-299.39,0.00019761,2]
[389104782,1759578941141,-581.13,0.00019761,2]
[389104783,1759578941168,-1095.41,0.00019761,2]
[389104784,1759578941196,-500.0,0.00019761,2]
[389104785,1759578941224,-858.34,0.00019761,2]
[389104786,1759578941250,-527.1,0.00019761,2]
[389104787,1759578941813,-384.98250051,0.00019213,2]
[389104788,1759578941823,-104.57557027,0.00019213,2]
[389104789,1759578941842,-395.42442973,0.00019213,2]
[389104790,1759578941853,-500.0,0.00019487,2]
[389104791,1759578941863,-199.98557027,0.00019761,2]
[389104792,1759578941877,-500.0,0.00019761,2]
[389104793,1759578941897,-706.02442973,0.00019761,2]
[389104794,1759578941906,-152.31557027,0.00019761,2]
[389104795,1759578941919,-527.1,0.00019761,2]
[389104796,1759578941934,-67.72442973,0.00019761,2]
[389104797,1759578941943,-730.05,0.00019761,2]
[389104798,1759578941952,-230.87557027,0.00019761,2]
[389104799,1759578942028,-184.46771077,0.00019661,2]
[389104800,1759578942057,-269.12442973,0.00019761,2]
[389104801,1759578942087,-586.98,0.00019761,2]
[389104802,1759578942114,-1314.39,0.00019761,2]
[389104803,1759578942142,-363.70459903,0.00019761,2]
[389104804,1759578942170,-1107.61,0.00019761,2]
[389104805,1759578942197,-151.0,0.00019761,2]
[389104806,1759578942224,-500.0,0.00019761,2]
[389104807,1759578942251,-500.0,0.00019761,2]
[389104808,1759578942511,-151.0,0.00019761,2]
[389104809,1759578942539,-151.0,0.00019761,2]
[389104810,1759578942570,-157.0014497,0.00019761,2]
[389104811,1759578942598,-504.74,0.00019761,2]
[389104812,1759578942627,-500.0,0.00019761,2]
[389104813,1759578942654,-500.0,0.00019761,2]
[389104814,1759578942682,-570.53,0.00019761,2]
[389104815,1759578942712,-1244.13,0.00019761,2]
[389104816,1759578942740,-513.78,0.00019761,2]
[389104817,1759578942768,-706.6271006,0.00019761,2]
[389104818,1759578942959,-2.3928994,0.00019761,2]
[389104819,1759578942988,-500.0,0.00019761,2]
[389104820,1759578943017,-702.34,0.00019761,2]
[389104821,1759578943045,-500.0,0.00019761,2]
[389104822,1759578943075,-611.55,0.00019761,2]
[389104823,1759578943105,-500.0,0.00019761,2]
[389104824,1759578943135,-247.34902482,0.00019761,2]
[389104825,1759578943163,-500.0,0.00019761,2]
[389104826,1759578943191,-866.82,0.00019761,2]
[389104827,1759578943261,-5000.0,0.00019761,2]
[389104828,1759578943398,-624.31,0.00019761,2]
[389104829,1759578943429,-500.0,0.00019761,2]
[389104830,1759578943456,-500.0,0.00019761,2]
[389104831,1759578943485,-584.94900917,0.0002,2]
[389104832,1759578943511,-500.0,0.00020034,2]
[389104833,1759578943539,-500.0,0.00020034,2]
[389104834,1759578943796,-290.09271263,0.00020034,2]
[389104835,1759578943825,-500.0,0.00020034,2]
[389104836,1759578943854,-500.0,0.00020034,2]
[389104837,1759578943881,-436.05483522,0.00020034,2]
[389104838,1759578944061,-383.31648753,0.00020034,2]
[389104839,1759578944091,-500.0,0.00020034,2]
[389104840,1759578944122,-500.0,0.00020034,2]
[389104841,1759578944150,-500.0,0.00020034,2]
[389104842,1759578944181,-500.0,0.00020034,2]
[389104843,1759578944211,-500.0,0.00020034,2]
[389104844,1759578944243,-646.26021794,0.00020034,2]
[389104845,1759578944273,-500.0,0.00020034,2]
[389104846,1759578944303,-500.0,0.00020034,2]
[389104847,1759578944332,-440.85658906,0.00020034,2]
[389104848,1759578945163,-500.0,0.00019213,2]
[389104849,1759578945178,-500.0,0.00019213,2]
[389104850,1759578945191,-500.0,0.00019213,2]
[389104851,1759578945764,-500.0,0.00019487,2]
[389104852,1759578945793,-362.62,0.00019761,2]
[389104853,1759578945821,-59.14341094,0.00020034,2]
[389104854,1759578945850,-500.0,0.00020034,2]
[389104855,1759578945880,-304.93145215,0.00020034,2]
[389104856,1759578945907,-500.0,0.00020034,2]
[389104857,1759578945935,-500.0,0.00020034,2]
[389104858,1759578945967,-500.0,0.00020034,2]
[389104859,1759578945994,-500.0,0.00020034,2]
[389104860,1759578946022,-500.0,0.00020034,2]
[389104861,1759578946049,-500.0,0.00020035,2]
[389104862,1759578946075,-46.62027382,0.00020035,2]
[389104863,1759578946218,-453.37972618,0.00020035,2]
[389104864,1759578946244,-151.0,0.00020035,2]
[389104865,1759578946271,-639.03,0.00020035,2]
[389104866,1759578946297,-151.0,0.00020035,2]
[389104867,1759578946324,-500.0,0.00020035,2]
[389104868,1759578946351,-500.0,0.00020035,2]
[389104869,1759578946377,-690.24,0.00020035,2]
[389104870,1759578946406,-704.65,0.00020035,2]
[389104871,1759578946442,-500.0,0.00020035,2]
[389104872,1759578946472,-500.0,0.00020035,2]
[389104873,1759578946608,-500.0,0.00020035,2]
[389104874,1759578946643,-4268.55,0.00020035,2]
[389104875,1759578946719,-500.0,0.00019213,2]
[389104876,1759578946746,-462.91,0.00020035,2]
[389104877,1759578946774,-1023.32,0.00020035,2]
[389104878,1759578946802,-591.31,0.00020035,2]
[389104879,1759578946834,-1874.39,0.00020035,2]
[389104880,1759578946866,-500.0,0.00020035,2]
[389104881,1759578947100,-500.0,0.00019213,2]
[389104882,1759578947133,-1807.95,0.00020035,2]
[389104883,1759578947165,-2474.42,0.00020035,2]
[389104884,1759578947259,-435.27,0.00020035,2]
[389104885,1759578947290,-635.85,0.00020035,2]
[389104886,1759578947321,-500.0,0.00020035,2]
[389104887,1759578947351,-1333.57,0.00020035,2]
[389104888,1759578947381,-500.0,0.00020035,2]
[389104889,1759578947880,-80.09027382,0.00019213,2]
[389104890,1759578947894,-419.90972618,0.00019213,2]
[389104891,1759578947905,-913.66027382,0.00020035,2]
[389104892,1759578947920,-500.0,0.00020035,2]
[389104893,1759578947939,-570.58955426,0.00019213,2]
[389104894,1759578947949,-2620.04044574,0.00020035,2]
[389104895,1759578949825,-500.0,0.00019213,2]
[389104896,1759578949855,-230.2483003,0.00019213,2]
[389104897,1759578949885,-500.0,0.00019213,2]
[389104898,1759578949917,-772.98,0.00019213,2]
[389104899,1759578949947,-500.0,0.00019213,2]
[389104900,1759578949978,-597.35,0.00019213,2]
[389104901,1759578950010,-500.0,0.00019487,2]
[389104902,1759578950040,-500.0,0.00019487,2]
[389104903,1759578950071,-772.98,0.00019487,2]
[389104904,1759578950192,-597.35,0.00019487,2]
[389104905,1759578950223,-500.0,0.00019761,2]
[389104906,1759578950254,-168.44422022,0.00019761,2]
[389104907,1759578950288,-772.98,0.00019761,2]
[389104908,1759578950322,-2953.82227912,0.00020035,2]
[389104909,1759578950419,-14.81700132,0.00020035,2]
[389104910,1759578950450,-3348.63,0.00020035,2]
[389104911,1759578950485,-504.50599736,0.00020035,2]
[389104912,1759578950975,-2264.10400264,0.00020035,2]
[389104913,1759578951009,-500.0,0.00020035,2]
[389104914,1759578951038,-555.03,0.00020035,2]
[389104915,1759578951066,-500.0,0.00020035,2]
[389104916,1759578951095,-891.25,0.00020035,2]
[389104917,1759578951225,-892.31,0.00020035,2]
[389104918,1759578951254,-500.0,0.00020035,2]
[389104919,1759578951283,-500.0,0.00020035,2]
[389104920,1759578951312,-500.0,0.00020035,2]
[389104921,1759578951340,-500.0,0.00020035,2]
[389104922,1759578951370,-500.0,0.00020035,2]
[389104923,1759578951399,-500.0,0.00020035,2]
[389104924,1759578951428,-761.97,0.00020035,2]
[389104925,1759578951456,-85.55,0.00020035,2]
[389104926,1759578951591,-597.35,0.00019761,2]
[389104927,1759578951620,-520.35,0.00020035,2]
[389104928,1759578951649,-500.0,0.00020035,2]
[389104929,1759578951679,-500.0,0.00020035,2]
[389104930,1759578951710,-2215.35,0.00020035,2]
[389104931,1759578951740,-500.0,0.00020035,2]
[389104932,1759578951905,-1753.03,0.00020035,2]
[389104933,1759578951933,-500.0,0.00020035,2]
[389104934,1759578951962,-565.87,0.00020035,2]
[389104935,1759578951991,-278.38,0.00020035,2]
[389104936,1759578952442,-34.12639808,0.00019213,2]
[389104937,1759578952456,-465.87360192,0.00019213,2]
[389104938,1759578952465,-34.12639808,0.00019213,2]
[389104939,1759578952640,-333.91,0.00019213,2]
[389104940,1759578952676,-131.96360192,0.00019213,2]
[389104941,1759578952706,-3805.45,0.00020035,2]
[389104942,1759578952735,-500.0,0.00020035,2]
[389104943,1759578952763,-544.05279616,0.00020035,2]
[389104944,1759578952856,-500.0,0.00019213,2]
[389104945,1759578952866,-37.07720384,0.00020035,2]
[389104946,1759578952875,-1095.41,0.00020035,2]
[389104947,1759578952885,-288.77639808,0.00020035,2]
[389104948,1759578952915,-211.22360192,0.00020035,2]
[389104949,1759578952942,-858.34,0.00020035,2]
[389104950,1759578952969,-527.1,0.00020035,2]
[389104951,1759578952997,-1406.01,0.00020035,2]
[389104952,1759578953025,-747.14,0.00020035,2]
[389104953,1759578953053,-730.05,0.00020035,2]
[389104954,1759578953081,-500.0,0.00020035,2]
[389104955,1759578953125,-586.98,0.00020035,2]
[389104956,1759578953152,-1314.39,0.00020035,2]
[389104957,1759578953179,-1107.61,0.00020035,2]
[389104958,1759578953206,-560.02935156,0.00020035,2]
[389104959,1759578953232,-500.0,0.00020035,2]
[389104960,1759578953265,-504.74,0.00020035,2]
[389104961,1759578953291,-352.51129688,0.00020035,2]
[389104962,1759578953338,-500.0,0.00019487,2]
[389104963,1759578953365,-147.48870312,0.00020035,2]
[389104964,1759578953393,-463.24346278,0.00020035,2]
[389104965,1759578953419,-570.53,0.00020035,2]
[389104966,1759578953449,-1244.13,0.00020035,2]
[389104967,1759578953476,-513.78,0.00020035,2]
[389104968,1759578953508,-709.02,0.00020035,2]
[389104969,1759578953536,-500.0,0.00020035,2]
[389104970,1759578953704,-1.2856682,0.00020035,2]
[389104971,1759578954281,-144.65008144,0.00019178,2]
[389104972,1759578954296,-355.34991856,0.00019178,2]
[389104973,1759578954305,-144.65008144,0.00019213,2]